[Event "Marshall CC Premier 04-2025"]
[Site "New York"]
[Date "2025.04.05"]
[Round "2.1"]
[White "Mottola, Max"]
[Black "Chasin, Nico"]
[Result "0-1"]
[Annotator "RC"]
[ECO "B90"]
[WhiteElo "2121"]
[BlackElo "2435"]
[PlyCount "138"]
[EventDate "2025.01.03"]
[EventType "swiss"]
[EventCountry "USA"]
[SourceTitle "playchess.com"]
[Source "ChessBase"]
[SourceQuality "1"]
[TimeControl "5400+30"]

1. e4 {[%emt 0:00:02]} c5 {[%emt 0:07:53]} 2. Nf3 {[%emt 0:00:07]} d6 {[%emt 0:00:05]} 3. d4 {[%emt 0:00:06]} cxd4 {[%emt 0:00:04]} 4. Nxd4 {[%emt 0:00:06]} Nf6 {[%emt 0:00:03]} 5. Nc3 {[%emt 0:00:10]} a6 {[%emt 0:00:42]} 6. a4 {[%emt 0:00:21]} g6 {[%emt 0:00:04]} 7. Be2 {[%emt 0:02:35]} Bg7 {[%emt 0:00:06]} 8. O-O {[%emt 0:00:23]} O-O {[%emt 0:00:02]} 9. Be3 {[%emt 0:00:20]} b6 {[%emt 0:03:09]} 10. a5 {[%emt 0:15:51]} Bb7 {[%emt 0:04:20]} 11. axb6 {[%emt 0:06:46]} Nbd7 {[%emt 0:00:06]} 12. f3 {[%emt 0:10:36]} Nxb6 {[%emt 0:01:58]} 13. Nb3 {[%emt 0:02:33]} Qc7 {[%emt 0:01:45]} 14. Na5 {[%emt 0:04:38]} Bc8 {[%emt 0:00:26]} 15. Qe1 {[%emt 0:12:29]} Be6 {[%emt 0:02:09]} 16. Qf2 {[%emt 0:02:48]} Rfb8 {[%emt 0:01:11]} 17. Bd4 {[%emt 0:05:55]} Nbd7 {[%emt 0:00:01]} 18. b3 {[%emt 0:02:54]} Rb4 {[%emt 0:00:06]} 19. Nc4 {[%emt 0:04:10]} a5 {[%emt 0:00:13]} 20. Na4 {[%emt 0:09:00]} d5 {[%emt 0:02:10]} 21. exd5 {[%emt 0:01:13]} Nxd5 {[%emt 0:00:06]} 22. Bxg7 {[%emt 0:02:48]} Kxg7 {[%emt 0:00:01]} 23. f4 {[%emt 0:00:57]} f6 {[%emt 0:02:08]} 24. Bd3 {[%emt 0:01:24]} Bf7 {[%emt 0:00:15]} 25. Rae1 {[%emt 0:01:10]} Re8 {[%emt 0:00:33]} 26. Re4 {[%emt 0:04:33]} Rbb8 {[%emt 0:01:51]} 27. Ne3 {[%emt 0:03:44]} Nb4 {[%emt 0:00:28]} 28. Bc4 {[%emt 0:01:14]} e6 {[%emt 0:00:01]} 29. Nd1 {[%emt 0:02:11]} f5 {[%emt 0:00:15]} 30. Ree1 {[%emt 0:00:57]} Nf6 {[%emt 0:00:06]} 31. Ndc3 {[%emt 0:01:10]} Rbd8 {[%emt 0:00:29]} 32. Re2 {[%emt 0:01:49]} e5 {[%emt 0:00:50]} 33. Nb5 {[%emt 0:00:28]} Qb8 {[%emt 0:00:20]} 34. fxe5 {[%emt 0:00:59]} Ng4 {[%emt 0:00:32]} 35. Qh4 {[%emt 0:00:32]} Bxc4 {[%emt 0:01:14]} 36. bxc4 {[%emt 0:00:04]} Rxe5 {[%emt 0:02:12]} 37. Rxe5 {[%emt 0:00:49]} Qxe5 {[%emt 0:00:07]} 38. Re1 {[%emt 0:00:46]} Qf6 {[%emt 0:00:01]} 39. Qxf6+ {[%emt 0:00:24]} Kxf6 {[%emt 0:00:09]} 40. h3 {[%emt 0:00:51]} Ne5 {[%emt 0:00:29]} 41. Na3 {[%emt 0:00:29]} Rd2 {[%emt 0:01:09]} 42. Rc1 {[%emt 0:00:35]} Re2 {[%emt 0:01:34]} 43. Nc3 {[%emt 0:00:24]} Rd2 {[%emt 0:00:01]} 44. c5 {[%emt 0:00:38]} Nd5 {[%emt 0:01:16]} 45. Rd1 {[%emt 0:00:29]} Rxd1+ {[%emt 0:00:11]} 46. Nxd1 {[%emt 0:00:02]} Ke6 {[%emt 0:00:53]} 47. c4 {[%emt 0:00:34]} Nf4 {[%emt 0:01:23]} 48. Nc3 {[%emt 0:00:18]} Kd7 {[%emt 0:00:15]} 49. Nd5 {[%emt 0:00:34]} Ne6 {[%emt 0:01:05]} 50. Nf6+ {[%emt 0:00:51]} Kc6 {[%emt 0:00:01]} 51. Nxh7 {[%emt 0:00:12]} Kxc5 {[%emt 0:00:01]} 52. Nf6 {[%emt 0:00:37]} Nxc4 {[%emt 0:00:13]} 53. Nc2 {[%emt 0:00:51]} Nd4 {[%emt 0:00:21]} 54. Nd7+ {[%emt 0:00:30]} Kd5 {[%emt 0:00:03]} 55. Nf6+ {[%emt 0:00:30]} Ke5 {[%emt 0:00:01]} 56. Nd7+ {[%emt 0:00:12]} Ke4 {[%emt 0:00:01]} 57. Nc5+ {[%emt 0:00:33]} Kd5 {[%emt 0:00:01]} 58. Nxd4 {[%emt 0:00:11]} Kxd4 {[%emt 0:00:05]} 59. Na4 {[%emt 0:00:10]} Ne5 {[%emt 0:00:34]} 60. Kf2 {[%emt 0:00:55]} Nd3+ {[%emt 0:00:05]} 61. Kf3 {[%emt 0:00:26]} g5 {[%emt 0:03:20]} 62. Nb6 {[%emt 0:00:56]} Kc5 {[%emt 0:00:03]} 63. Na4+ {[%emt 0:00:13]} Kb4 {[%emt 0:01:16]} 64. Nb6 {[%emt 0:00:03]} Ne5+ {[%emt 0:02:36]} 65. Kf2 {[%emt 0:01:09]} a4 {[%emt 0:00:25]} 66. Nxa4 {[%emt 0:00:06]} Kxa4 {[%emt 0:00:01]} 67. h4 {[%emt 0:01:08]} gxh4 {[%emt 0:00:15]} 68. Ke3 {[%emt 0:00:17]} Ng6 {[%emt 0:00:01]} 69. Kf3 {[%emt 0:00:41]} Kb4 {[%emt 0:00:09]} 0-1

[Event "Marshall CC Premier 04-2025"]
[Site "New York"]
[Date "2025.04.05"]
[Round "2.2"]
[White "Knowles, Chase"]
[Black "Muthukumar, Haari"]
[Result "0-1"]
[Annotator "RC"]
[ECO "A13"]
[WhiteElo "1968"]
[BlackElo "2197"]
[PlyCount "66"]
[EventDate "2025.01.03"]
[EventType "swiss"]
[EventCountry "USA"]
[SourceTitle "playchess.com"]
[Source "ChessBase"]
[SourceQuality "1"]
[TimeControl "5400+30"]

1. Nf3 {[%emt 0:06:05]} d5 {[%emt 0:00:38]} 2. c4 {[%emt 0:00:09]} e6 {[%emt 0:00:07]} 3. e3 {[%emt 0:00:03]} b6 {[%emt 0:00:13]} 4. b3 {[%emt 0:00:27]} Bb7 {[%emt 0:00:08]} 5. Bb2 {[%emt 0:00:07]} Nf6 {[%emt 0:00:17]} 6. Nc3 {[%emt 0:00:08]} Nbd7 {[%emt 0:00:07]} 7. Qc2 {[%emt 0:02:20]} a6 {[%emt 0:01:57]} 8. Be2 {[%emt 0:01:05]} Bd6 {[%emt 0:00:03]} 9. g4 {[%emt 0:05:59]} Nxg4 {[%emt 0:15:26]} 10. Rg1 {[%emt 0:01:31]} Nge5 {[%emt 0:00:54]} 11. cxd5 {[%emt 0:09:52]} exd5 {[%emt 0:01:16]} 12. Rxg7 {[%emt 0:05:45]} Qe7 {[%emt 0:09:31]} 13. Rxh7 {[%emt 0:06:00]} Rg8 {[%emt 0:05:42]} 14. O-O-O {[%emt 0:05:08]} O-O-O {[%emt 0:01:09]} 15. Nd4 {[%emt 0:04:19]} Ba3 {[%emt 1:00:32]} 16. f4 {[%emt 0:02:06]} Ng6 {[%emt 0:00:00]} 17. Qf5 {[%emt 0:04:14]} Bxb2+ {[%emt 0:00:00]} 18. Kxb2 {[%emt 0:00:14]} c5 {[%emt 0:00:00]} 19. Nxd5 {[%emt 0:03:44]} Qd6 {[%emt 0:00:00]} 20. Nb4 {[%emt 0:17:48]} cxd4 {[%emt 0:00:00]} 21. Nxa6 {[%emt 0:02:27]} Bxa6 {[%emt 0:00:00]} 22. Bxa6+ {[%emt 0:00:10]} Kb8 {[%emt 0:00:00]} 23. Rc1 {[%emt 0:05:08]} Ne7 {[%emt 0:00:00]} 24. Qxf7 {[%emt 0:02:26]} dxe3 {[%emt 0:00:00]} 25. Qxe7 {[%emt 0:06:33]} Qd4+ {[%emt 0:00:00]} 26. Kb1 {[%emt 0:06:58]} exd2 {[%emt 0:00:00]} 27. Rd1 {[%emt 0:00:05]} Rge8 {[%emt 0:00:00]} 28. Qh4 {[%emt 0:00:43]} Nc5 {[%emt 0:00:00]} 29. Bb5 {[%emt 0:02:20]} Nd3 {[%emt 0:00:00]} 30. Bxd3 {[%emt 0:00:51]} Qxd3+ {[%emt 0:00:00]} 31. Kb2 {[%emt 0:00:03]} Rc8 {[%emt 0:00:00]} 32. Qh6 {[%emt 0:01:08]} Rc2+ {[%emt 0:00:00]} 33. Kb1 {[%emt 0:00:05]} Rc6+ {[%emt 0:00:00]} 0-1

[Event "Marshall CC Premier 04-2025"]
[Site "New York"]
[Date "2025.04.05"]
[Round "2.3"]
[White "Berg, George"]
[Black "Hoffman, Luc"]
[Result "0-1"]
[Annotator "RC"]
[ECO "B45"]
[WhiteElo "1872"]
[BlackElo "2211"]
[PlyCount "62"]
[EventDate "2025.01.03"]
[EventType "swiss"]
[EventCountry "USA"]
[SourceTitle "playchess.com"]
[Source "ChessBase"]
[SourceQuality "1"]
[TimeControl "5400+30"]

1. e4 {[%emt 0:00:02]} c5 {[%emt 0:00:04]} 2. Nf3 {[%emt 0:00:05]} e6 {[%emt 0:00:05]} 3. d4 {[%emt 0:00:05]} cxd4 {[%emt 0:00:05]} 4. Nxd4 {[%emt 0:00:04]} Nf6 {[%emt 0:00:04]} 5. Nc3 {[%emt 0:00:09]} Nc6 {[%emt 0:00:04]} 6. Ndb5 {[%emt 0:00:35]} Bc5 {[%emt 0:00:47]} 7. Bf4 {[%emt 0:09:51]} O-O {[%emt 0:02:02]} 8. Bc7 {[%emt 0:03:49]} Qe7 {[%emt 0:01:06]} 9. Bd6 {[%emt 0:00:06]} Bxd6 {[%emt 0:00:10]} 10. Qxd6 {[%emt 0:00:47]} Qd8 {[%emt 0:00:44]} 11. O-O-O {[%emt 0:00:23]} a6 {[%emt 0:00:20]} 12. Nc7 {[%emt 0:01:05]} Ra7 {[%emt 0:02:09]} 13. Be2 {[%emt 0:08:24]} b5 {[%emt 0:05:51]} 14. N7xb5 {[%emt 0:00:48]} axb5 {[%emt 0:00:07]} 15. Bxb5 {[%emt 0:00:09]} Qb6 {[%emt 0:02:24]} 16. f3 {[%emt 0:02:25]} Ne8 {[%emt 0:02:49]} 17. Qd2 {[%emt 0:00:36]} Rb7 {[%emt 0:02:29]} 18. b3 {[%emt 0:03:33]} Nc7 {[%emt 0:03:38]} 19. Ba4 {[%emt 0:01:27]} Ne5 {[%emt 0:04:39]} 20. Qd4 {[%emt 0:02:47]} Qa5 {[%emt 0:02:07]} 21. f4 {[%emt 0:00:59]} Ng4 {[%emt 0:05:23]} 22. h3 {[%emt 0:03:45]} Nf6 {[%emt 0:08:53]} 23. g4 {[%emt 0:03:07]} d5 {[%emt 0:01:37]} 24. e5 {[%emt 0:03:02]} Rb4 {[%emt 0:03:12]} 25. Qd2 {[%emt 0:00:53]} d4 {[%emt 0:03:08]} 26. Nb1 {[%emt 0:04:26]} Ne4 {[%emt 0:01:34]} 27. Qe1 {[%emt 0:00:09]} Nc3 {[%emt 0:00:43]} 28. a3 {[%emt 0:02:22]} Qxa4 {[%emt 0:04:41]} 29. axb4 {[%emt 0:02:21]} Qa1 {[%emt 0:00:39]} 30. Kd2 {[%emt 0:02:22]} Nxd1 {[%emt 0:00:41]} 31. Qxd1 {[%emt 0:00:06]} Nd5 {[%emt 0:00:32]} 0-1

[Event "Marshall CC Premier 04-2025"]
[Site "New York"]
[Date "2025.04.05"]
[Round "2.4"]
[White "Bonin, Jay"]
[Black "Pan, Zachary"]
[Result "1-0"]
[Annotator "RC"]
[ECO "E02"]
[WhiteElo "2110"]
[BlackElo "1955"]
[PlyCount "135"]
[EventDate "2025.01.03"]
[EventType "swiss"]
[EventCountry "USA"]
[SourceTitle "playchess.com"]
[Source "ChessBase"]
[SourceQuality "1"]
[TimeControl "5400+30"]

1. d4 {[%emt 0:02:56]} Nf6 {[%emt 0:00:01]} 2. Nf3 {[%emt 0:00:16]} e6 {[%emt 0:00:09]} 3. c4 {[%emt 0:00:09]} d5 {[%emt 0:00:06]} 4. g3 {[%emt 0:00:25]} dxc4 {[%emt 0:00:09]} 5. Qa4+ {[%emt 0:00:10]} Nbd7 {[%emt 0:00:18]} 6. Bg2 {[%emt 0:00:37]} c5 {[%emt 0:03:40]} 7. dxc5 {[%emt 0:02:16]} Bxc5 {[%emt 0:01:00]} 8. O-O {[%emt 0:00:12]} O-O {[%emt 0:00:44]} 9. Qxc4 {[%emt 0:00:11]} Qe7 {[%emt 0:02:20]} 10. Bg5 {[%emt 0:02:57]} h6 {[%emt 0:00:46]} 11. Bxf6 {[%emt 0:00:06]} Nxf6 {[%emt 0:01:17]} 12. Nc3 {[%emt 0:00:21]} Bd7 {[%emt 0:04:37]} 13. Ne5 {[%emt 0:00:59]} Rac8 {[%emt 0:01:33]} 14. Qh4 {[%emt 0:00:57]} b5 {[%emt 0:08:46]} 15. Rfd1 {[%emt 0:09:34]} Be8 {[%emt 0:02:59]} 16. Nd3 {[%emt 0:07:17]} b4 {[%emt 0:02:39]} 17. Ne4 {[%emt 0:01:31]} Nxe4 {[%emt 0:01:08]} 18. Qxe7 {[%emt 0:00:06]} Bxe7 {[%emt 0:00:14]} 19. Bxe4 {[%emt 0:00:05]} Bc6 {[%emt 0:02:18]} 20. Bxc6 {[%emt 0:00:20]} Rxc6 {[%emt 0:00:02]} 21. Rac1 {[%emt 0:00:07]} Rfc8 {[%emt 0:03:11]} 22. Kf1 {[%emt 0:02:37]} Kf8 {[%emt 0:03:06]} 23. Rxc6 {[%emt 0:03:55]} Rxc6 {[%emt 0:00:02]} 24. Rc1 {[%emt 0:00:05]} Rxc1+ {[%emt 0:00:26]} 25. Nxc1 {[%emt 0:00:03]} Ke8 {[%emt 0:04:33]} 26. Nd3 {[%emt 0:00:54]} f6 {[%emt 0:04:32]} 27. Ke1 {[%emt 0:09:03]} Kd7 {[%emt 0:00:20]} 28. Kd2 {[%emt 0:00:40]} Kc6 {[%emt 0:00:32]} 29. Kc2 {[%emt 0:03:41]} Bd6 {[%emt 0:01:10]} 30. Kb3 {[%emt 0:07:03]} Kb5 {[%emt 0:00:25]} 31. a4+ {[%emt 0:00:40]} bxa3 {[%emt 0:00:13]} 32. bxa3 {[%emt 0:00:02]} a5 {[%emt 0:08:13]} 33. a4+ {[%emt 0:00:10]} Kc6 {[%emt 0:00:05]} 34. Kc4 {[%emt 0:00:18]} e5 {[%emt 0:02:25]} 35. e4 {[%emt 0:00:37]} Bc7 {[%emt 0:06:01]} 36. g4 {[%emt 0:02:25]} Bb6 {[%emt 0:00:40]} 37. h4 {[%emt 0:01:12]} g6 {[%emt 0:08:07]} 38. h5 {[%emt 0:02:14]} gxh5 {[%emt 0:00:21]} 39. gxh5 {[%emt 0:00:05]} Ba7 {[%emt 0:00:58]} 40. f3 {[%emt 0:00:43]} Be3 {[%emt 0:01:48]} 41. Ne1 {[%emt 0:02:24]} Bf2 {[%emt 0:00:49]} 42. Ng2 {[%emt 0:03:17]} Kd6 {[%emt 0:02:58]} 43. Kb5 {[%emt 0:00:11]} Ke6 {[%emt 0:00:39]} 44. Kxa5 {[%emt 0:00:12]} f5 {[%emt 0:00:06]} 45. Kb5 {[%emt 0:01:19]} fxe4 {[%emt 0:01:23]} 46. fxe4 {[%emt 0:00:05]} Kf6 {[%emt 0:07:35]} 47. a5 {[%emt 0:20:00]} Kg5 {[%emt 0:00:06]} 48. a6 {[%emt 0:00:19]} Kxh5 {[%emt 0:00:37]} 49. Ne1 {[%emt 0:00:11]} Kg5 {[%emt 0:01:29]} 50. Nd3 {[%emt 0:00:14]} Ba7 {[%emt 0:00:06]} 51. Kc6 {[%emt 0:08:14]} h5 {[%emt 0:02:25]} 52. Kb7 {[%emt 0:00:34]} Bd4 {[%emt 0:04:07]} 53. Nxe5 {[%emt 0:00:41]} Kf4 {[%emt 0:00:19]} 54. Nf3 {[%emt 0:06:21]} Kxf3 {[%emt 0:02:20]} 55. e5 {[%emt 0:00:05]} Bxe5 {[%emt 0:02:28]} 56. a7 {[%emt 0:00:04]} Kg2 {[%emt 0:00:46]} 57. a8=Q {[%emt 0:00:09]} Bg3 {[%emt 0:00:54]} 58. Kb6+ {[%emt 0:00:50]} Kg1 {[%emt 0:00:46]} 59. Qf3 {[%emt 0:00:11]} h4 {[%emt 0:00:28]} 60. Kc5 {[%emt 0:00:35]} Kh2 {[%emt 0:04:13]} 61. Kd4 {[%emt 0:00:32]} h3 {[%emt 0:00:59]} 62. Ke3 {[%emt 0:00:11]} Be5 {[%emt 0:01:26]} 63. Ke2 {[%emt 0:00:51]} Bg3 {[%emt 0:00:10]} 64. Kf1 {[%emt 0:00:08]} Bh4 {[%emt 0:00:22]} 65. Qe2+ {[%emt 0:00:08]} Kh1 {[%emt 0:00:20]} 66. Qe4+ {[%emt 0:00:04]} Kh2 {[%emt 0:00:06]} 67. Qxh4 {[%emt 0:00:05]} Kh1 {[%emt 0:00:11]} 68. Qxh3# {[%emt 0:00:33]} 1-0

[Event "Marshall CC Premier 04-2025"]
[Site "New York"]
[Date "2025.04.05"]
[Round "2.5"]
[White "Hebbar, Eshaan"]
[Black "Gartenlaub, Corin"]
[Result "1-0"]
[Annotator "RC"]
[ECO "D38"]
[WhiteElo "2175"]
[BlackElo "2018"]
[PlyCount "51"]
[EventDate "2025.01.03"]
[EventType "swiss"]
[EventCountry "USA"]
[SourceTitle "playchess.com"]
[Source "ChessBase"]
[SourceQuality "1"]
[TimeControl "5400+30"]

1. d4 {[%emt 0:00:03]} Nf6 {[%emt 0:00:04]} 2. c4 {[%emt 0:00:03]} e6 {[%emt 0:00:03]} 3. Nf3 {[%emt 1:31:54]} d5 {[%emt 0:00:03]} 4. Nc3 {[%emt 0:00:00]} Bb4 {[%emt 0:00:06]} 5. cxd5 {[%emt 0:00:00]} exd5 {[%emt 0:02:59]} 6. Bg5 {[%emt 0:00:00]} h6 {[%emt 0:01:14]} 7. Bh4 {[%emt 0:00:00]} g5 {[%emt 0:01:13]} 8. Bg3 {[%emt 0:00:00]} Ne4 {[%emt 0:00:05]} 9. Nd2 {[%emt 0:00:00]} Nxc3 {[%emt 0:03:05]} 10. bxc3 {[%emt 0:00:00]} Bxc3 {[%emt 1:26:38]} 11. Rc1 {[%emt 0:04:00]} Ba5 {[%emt 0:00:00]} 12. e3 {[%emt 0:00:00]} c6 {[%emt 0:00:00]} 13. h4 {[%emt 0:00:00]} g4 {[%emt 0:00:00]} 14. h5 {[%emt 0:00:00]} Bc7 {[%emt 0:00:00]} 15. Bh4 {[%emt 0:00:00]} Qd6 {[%emt 0:00:00]} 16. Bd3 {[%emt 0:00:00]} Be6 {[%emt 0:00:00]} 17. Bf6 {[%emt 0:00:00]} Rf8 {[%emt 0:00:00]} 18. g3 {[%emt 0:00:00]} Qa3 {[%emt 0:00:00]} 19. Qc2 {[%emt 0:00:00]} Ba5 {[%emt 0:00:00]} 20. Rb1 {[%emt 0:00:00]} Na6 {[%emt 0:00:00]} 21. Rxb7 {[%emt 0:00:00]} Bxd2+ {[%emt 0:05:30]} 22. Kxd2 {[%emt 0:00:00]} Qa5+ {[%emt 0:00:00]} 23. Ke2 {[%emt 0:00:00]} Bd7 {[%emt 0:00:00]} 24. Bf5 {[%emt 0:00:00]} Nb8 {[%emt 0:00:00]} 25. Rhb1 {[%emt 0:00:00]} Qa6+ {[%emt 0:00:00]} 26. Bd3 {[%emt 0:00:00]} 1-0

[Event "Marshall CC Premier 04-2025"]
[Site "New York"]
[Date "2025.04.05"]
[Round "2.6"]
[White "Klenoff, Caleb"]
[Black "Cheung, Kyle"]
[Result "1/2-1/2"]
[Annotator "RC"]
[ECO "B11"]
[WhiteElo "2141"]
[BlackElo "1934"]
[PlyCount "93"]
[EventDate "2025.01.03"]
[EventType "swiss"]
[EventCountry "USA"]
[SourceTitle "playchess.com"]
[Source "ChessBase"]
[SourceQuality "1"]
[TimeControl "5400+30"]

1. e4 {[%emt 0:00:44]} c6 {[%emt 0:03:42]} 2. Nc3 {[%emt 0:00:55]} d5 {[%emt 0:00:04]} 3. Qf3 {[%emt 1:30:21]} d4 {[%emt 0:03:06]} 4. Bc4 {[%emt 0:00:00]} Nf6 {[%emt 0:02:32]} 5. e5 {[%emt 0:00:00]} dxc3 {[%emt 0:00:25]} 6. exf6 {[%emt 0:00:00]} exf6 {[%emt 0:02:01]} 7. dxc3 {[%emt 0:00:00]} Bd6 {[%emt 0:00:50]} 8. Qe2+ {[%emt 0:00:00]} Qe7 {[%emt 0:01:00]} 9. Be3 {[%emt 0:00:00]} O-O {[%emt 0:02:13]} 10. O-O-O {[%emt 0:00:00]} Be6 {[%emt 0:11:09]} 11. Nf3 {[%emt 0:00:00]} b5 {[%emt 0:05:42]} 12. Bxe6 {[%emt 0:00:00]} fxe6 {[%emt 0:02:35]} 13. Rhe1 {[%emt 0:00:00]} Na6 {[%emt 0:05:02]} 14. a4 {[%emt 0:00:00]} Nc7 {[%emt 0:07:24]} 15. Nd4 {[%emt 0:00:00]} Qd7 {[%emt 0:08:01]} 16. Qf3 {[%emt 0:00:00]} bxa4 {[%emt 0:08:55]} 17. Qxc6 {[%emt 0:00:00]} Qxc6 {[%emt 0:02:29]} 18. Nxc6 {[%emt 0:00:00]} Nd5 {[%emt 0:00:29]} 19. c4 {[%emt 0:00:00]} Nxe3 {[%emt 0:32:21]} 20. Rxd6 {[%emt 0:00:00]} Nxc4 {[%emt 0:00:00]} 21. Rdxe6 {[%emt 0:00:00]} a3 {[%emt 0:00:00]} 22. bxa3 {[%emt 0:00:00]} Nxa3 {[%emt 0:00:00]} 23. R1e4 {[%emt 0:00:00]} Nb5 {[%emt 0:00:00]} 24. Kb2 {[%emt 0:00:00]} a5 {[%emt 0:00:00]} 25. Ra4 {[%emt 0:00:00]} Rfc8 {[%emt 0:00:00]} 26. c4 {[%emt 0:00:00]} Na7 {[%emt 0:00:00]} 27. Nd4 {[%emt 0:00:00]} Rab8+ {[%emt 0:00:00]} 28. Kc3 {[%emt 0:00:00]} Kf7 {[%emt 0:00:00]} 29. Ra6 {[%emt 0:03:40]} Nb5+ {[%emt 0:00:00]} 30. Nxb5 {[%emt 0:00:03]} Rxb5 {[%emt 0:00:00]} 31. R6xa5 {[%emt 0:00:36]} Rb1 {[%emt 0:00:00]} 32. Ra7+ {[%emt 0:00:10]} Kg6 {[%emt 0:00:00]} 33. Ra1 {[%emt 0:00:05]} Rb6 {[%emt 0:00:00]} 34. Rd7 {[%emt 0:02:05]} Rbc6 {[%emt 0:00:00]} 35. Ra4 {[%emt 0:00:06]} Kh6 {[%emt 0:00:39]} 36. Kd4 {[%emt 0:03:00]} g5 {[%emt 0:00:38]} 37. Rd5 {[%emt 0:01:38]} Kg6 {[%emt 0:00:21]} 38. c5 {[%emt 0:00:49]} h5 {[%emt 0:00:33]} 39. Ra7 {[%emt 0:01:29]} Re6 {[%emt 0:01:16]} 40. Ra2 {[%emt 0:02:32]} Re1 {[%emt 0:00:30]} 41. Rc2 {[%emt 0:00:03]} Rd1+ {[%emt 0:00:55]} 42. Kc4 {[%emt 0:00:02]} Rg1 {[%emt 0:01:30]} 43. f3 {[%emt 0:00:45]} g4 {[%emt 0:01:59]} 44. Rb2 {[%emt 0:00:54]} Rc1+ {[%emt 0:00:45]} 45. Kd4 {[%emt 0:00:27]} Rd1+ {[%emt 0:00:08]} 46. Kc4 {[%emt 0:01:06]} Rc1+ {[%emt 0:00:02]} 47. Kd4 {[%emt 0:01:12]} 1/2-1/2

[Event "Marshall CC Premier 04-2025"]
[Site "New York"]
[Date "2025.04.05"]
[Round "2.7"]
[White "Kurup, Siddharth"]
[Black "Chin, Spencer"]
[Result "1/2-1/2"]
[Annotator "RC"]
[ECO "D32"]
[WhiteElo "1965"]
[BlackElo "2084"]
[PlyCount "63"]
[EventDate "2025.01.03"]
[EventType "swiss"]
[EventCountry "USA"]
[SourceTitle "playchess.com"]
[Source "ChessBase"]
[SourceQuality "1"]
[TimeControl "5400+30"]

1. d4 {[%emt 0:00:04]} d5 {[%emt 0:06:39]} 2. c4 {[%emt 0:00:14]} e6 {[%emt 0:00:37]} 3. Nc3 {[%emt 0:00:12]} c5 {[%emt 0:00:05]} 4. cxd5 {[%emt 0:04:53]} cxd4 {[%emt 0:00:50]} 5. Qxd4 {[%emt 0:00:52]} Nc6 {[%emt 0:01:53]} 6. Qd1 {[%emt 0:00:31]} exd5 {[%emt 0:00:10]} 7. Qxd5 {[%emt 0:00:50]} Bd6 {[%emt 0:00:48]} 8. e3 {[%emt 0:06:04]} Nf6 {[%emt 0:02:34]} 9. Qd1 {[%emt 0:01:33]} O-O {[%emt 0:00:59]} 10. Nf3 {[%emt 0:00:29]} Qe7 {[%emt 0:01:27]} 11. Be2 {[%emt 0:07:27]} Rd8 {[%emt 0:05:12]} 12. Bd2 {[%emt 0:01:22]} Bf5 {[%emt 0:07:16]} 13. O-O {[%emt 0:01:48]} Rac8 {[%emt 0:04:20]} 14. Rc1 {[%emt 0:13:57]} Bb8 {[%emt 0:06:03]} 15. a3 {[%emt 0:01:52]} Ne4 {[%emt 0:08:50]} 16. Nxe4 {[%emt 0:13:07]} Bxe4 {[%emt 0:00:11]} 17. Nd4 {[%emt 0:43:45]} Nxd4 {[%emt 0:08:21]} 18. exd4 {[%emt 0:00:00]} Qd6 {[%emt 0:02:39]} 19. g3 {[%emt 0:00:00]} Qxd4 {[%emt 0:02:31]} 20. Rxc8 {[%emt 0:00:00]} Rxc8 {[%emt 0:00:13]} 21. Bc3 {[%emt 0:00:00]} Qc5 {[%emt 0:03:44]} 22. Bf3 {[%emt 0:00:00]} Bxf3 {[%emt 0:07:27]} 23. Qxf3 {[%emt 0:00:00]} b6 {[%emt 0:13:28]} 24. Qg4 {[%emt 0:00:00]} g6 {[%emt 0:00:34]} 25. Re1 {[%emt 0:00:00]} Rd8 {[%emt 0:06:25]} 26. Qh4 {[%emt 0:00:00]} Qd6 {[%emt 0:00:35]} 27. Qh6 {[%emt 0:00:00]} Qf8 {[%emt 0:00:50]} 28. Qg5 {[%emt 0:00:00]} Qd6 {[%emt 0:03:24]} 29. Bb4 {[%emt 0:00:00]} Qd7 {[%emt 0:03:00]} 30. Re7 {[%emt 0:01:44]} Qc6 {[%emt 0:02:44]} 31. Re1 {[%emt 0:02:54]} Re8 {[%emt 0:01:38]} 32. Rxe8+ {[%emt 0:01:16]} 1/2-1/2

[Event "Marshall CC Premier 04-2025"]
[Site "New York"]
[Date "2025.04.05"]
[Round "2.8"]
[White "Schaefer, Sasha Milo"]
[Black "Stancil, Kimani"]
[Result "1/2-1/2"]
[Annotator "RC"]
[ECO "B51"]
[WhiteElo "2050"]
[BlackElo "1919"]
[PlyCount "97"]
[EventDate "2025.01.03"]
[EventType "swiss"]
[EventCountry "USA"]
[SourceTitle "playchess.com"]
[Source "ChessBase"]
[SourceQuality "1"]
[TimeControl "5400+30"]

1. e4 {[%emt 0:00:01]} c5 {[%emt 0:02:28]} 2. Nf3 {[%emt 0:00:04]} d6 {[%emt 0:00:08]} 3. Bb5+ {[%emt 0:00:02]} Nd7 {[%emt 0:00:12]} 4. c3 {[%emt 0:00:04]} a6 {[%emt 0:00:14]} 5. Ba4 {[%emt 0:00:03]} Ngf6 {[%emt 0:05:47]} 6. Qe2 {[%emt 0:00:06]} e6 {[%emt 0:01:07]} 7. O-O {[%emt 0:00:06]} b5 {[%emt 0:00:22]} 8. Bc2 {[%emt 0:00:03]} Bb7 {[%emt 0:00:13]} 9. d4 {[%emt 0:00:44]} Qc7 {[%emt 0:00:18]} 10. a4 {[%emt 0:03:56]} Be7 {[%emt 0:07:29]} 11. Bd3 {[%emt 0:02:46]} bxa4 {[%emt 0:11:40]} 12. Nbd2 {[%emt 0:07:33]} O-O {[%emt 0:11:14]} 13. Rxa4 {[%emt 0:01:39]} Nb6 {[%emt 0:02:58]} 14. Ra1 {[%emt 0:02:27]} a5 {[%emt 0:20:45]} 15. e5 {[%emt 0:10:01]} Nfd5 {[%emt 0:00:32]} 16. Ne4 {[%emt 0:07:11]} dxe5 {[%emt 0:03:28]} 17. dxe5 {[%emt 0:01:01]} Nd7 {[%emt 0:01:22]} 18. Ng3 {[%emt 0:07:22]} Rfc8 {[%emt 0:07:07]} 19. Re1 {[%emt 0:10:55]} a4 {[%emt 0:01:04]} 20. h4 {[%emt 0:04:15]} c4 {[%emt 0:01:30]} 21. Bc2 {[%emt 0:01:00]} a3 {[%emt 0:00:12]} 22. bxa3 {[%emt 0:07:05]} Nxc3 {[%emt 0:01:36]} 23. Qd2 {[%emt 0:02:13]} Nd5 {[%emt 0:00:54]} 24. Nh5 {[%emt 0:06:04]} c3 {[%emt 0:02:21]} 25. Qd4 {[%emt 0:01:02]} Qc4 {[%emt 0:00:47]} 26. Qd1 {[%emt 0:04:15]} Qg4 {[%emt 0:02:40]} 27. Ng3 {[%emt 0:01:55]} Bc5 {[%emt 0:01:58]} 28. Ne4 {[%emt 0:05:15]} Qh5 {[%emt 0:03:38]} 29. Ng3 {[%emt 0:02:08]} Qg4 {[%emt 0:00:02]} 30. Ne4 {[%emt 0:01:04]} Bc6 {[%emt 0:03:33]} 31. Qd3 {[%emt 0:03:38]} g6 {[%emt 0:03:38]} 32. g3 {[%emt 0:05:30]} Ba4 {[%emt 0:00:53]} 33. Kg2 {[%emt 0:01:36]} Bxc2 {[%emt 0:00:37]} 34. Qxc2 {[%emt 0:00:04]} Qf5 {[%emt 0:00:12]} 35. Re2 {[%emt 0:01:30]} Be7 {[%emt 0:01:43]} 36. Neg5 {[%emt 0:01:53]} Qxc2 {[%emt 0:00:17]} 37. Rxc2 {[%emt 0:00:06]} Nb4 {[%emt 0:00:15]} 38. Re2 {[%emt 0:00:24]} Nc5 {[%emt 0:00:31]} 39. Rb1 {[%emt 0:00:59]} Ncd3 {[%emt 0:00:34]} 40. axb4 {[%emt 0:01:05]} c2 {[%emt 0:00:15]} 41. Rxc2 {[%emt 0:00:18]} Rxc2 {[%emt 0:00:07]} 42. Be3 {[%emt 0:00:07]} Raa2 {[%emt 0:01:00]} 43. Ne4 {[%emt 0:00:30]} Nxb4 {[%emt 0:00:31]} 44. Bg5 {[%emt 0:00:52]} Nc6 {[%emt 0:01:46]} 45. Nd4 {[%emt 0:01:10]} Bxg5 {[%emt 0:01:39]} 46. Nxc2 {[%emt 0:00:27]} Be7 {[%emt 0:01:06]} 47. Ne3 {[%emt 0:00:09]} Nxe5 {[%emt 0:00:09]} 48. Rb7 {[%emt 0:00:21]} Bf8 {[%emt 0:00:16]} 49. Nf6+ {[%emt 0:02:01]} 1/2-1/2